fUSD/lending_fUSD_20260506
["ID","MTS","AMOUNT","RATE_DAILY","PERIOD"]
[421690956,1778043072000,-500.0,0.00041917,120]
[421690964,1778043072000,-2343.98,0.00041917,30]
[421690967,1778043072000,-2343.98,0.00041917,30]
[421690977,1778043072000,-500.0,0.00041917,120]
[421690965,1778043072000,-176.53493712,0.00041917,120]
[421690959,1778043072000,-500.0,0.00041917,120]
[421690958,1778043072000,-500.0,0.00041917,120]
[421690962,1778043072000,-286.13673005,0.00041917,120]
[421690961,1778043072000,-582.10574026,0.00041917,120]
[421690970,1778043072000,-2343.98,0.00041917,30]
[421690968,1778043072000,-2343.98,0.00041917,30]
[421690973,1778043072000,-2343.98,0.00041917,30]
[421690971,1778043072000,-2343.98,0.00041917,30]
[421690976,1778043072000,-2343.98,0.00041917,30]
[421690975,1778043072000,-500.0,0.00041917,120]
[421690974,1778043072000,-2343.98,0.00041917,30]
[421690972,1778043072000,-2343.98,0.00041917,30]
[421690966,1778043072000,-229.92549905,0.00041917,120]
[421691006,1778043072000,-500.0,0.00041917,120]
[421691008,1778043072000,-500.0,0.00041917,120]
[421691004,1778043072000,-500.0,0.00041917,120]
[421691046,1778043072000,-2154.07,0.00042,90]
[421691036,1778043072000,-500.0,0.00041997,20]
[421691038,1778043072000,-50000.0,0.00042,120]
[421691041,1778043072000,-3000.0,0.00042,120]
[421691043,1778043072000,-7844.41944267,0.00042,120]
[421691039,1778043072000,-500.0,0.00042,2]
[421691037,1778043072000,-500.0,0.00041999,61]
[421691044,1778043072000,-500.0,0.00042,45]
[421691040,1778043072000,-11325.13190072,0.00042,120]
[421691042,1778043072000,-16137.95681956,0.00042,10]
[421691050,1778043072000,-500.0,0.00042,45]
[421691060,1778043072000,-157.0,0.000421,120]
[421691048,1778043072000,-183.0,0.00042,30]
[421691049,1778043072000,-500.0,0.00042,45]
[421691054,1778043072000,-971.15852387,0.00042,120]
[421691057,1778043072000,-250.0,0.00042014,99]
[421691059,1778043072000,-56000.0,0.00042089,120]
[421691058,1778043072000,-719.7948,0.00042026,120]
[421691055,1778043072000,-50000.0,0.00042,120]
[421691053,1778043072000,-3819.48820206,0.00042,120]
[421691056,1778043072000,-500.0,0.00042,120]
[421691052,1778043072000,-3000.0,0.00042,120]
[421691062,1778043072000,-250.0,0.00042177,104]
[421691065,1778043072000,-1560.0,0.00042192,120]
[421691063,1778043072000,-154.10554823,0.0004218,120]
[421691003,1778043072000,-2343.98,0.00041917,30]
[421691061,1778043072000,-163.0,0.00042112,16]
[421691047,1778043072000,-500.0,0.00042,45]
[421691051,1778043072000,-500.0,0.00042,45]
[421691030,1778043072000,-719.72,0.00041926,120]
[421691045,1778043072000,-500.0,0.00042,45]
[421691009,1778043072000,-500.0,0.00041917,120]
[421691007,1778043072000,-2344.06749327,0.00041917,30]
[421691013,1778043072000,-500.0,0.00041917,120]
[421691012,1778043072000,-215.7741303,0.00041917,120]
[421691064,1778043072000,-12597.20501569,0.00042189,120]
[421691015,1778043072000,-294.8269739,0.00041917,120]
[421691016,1778043072000,-500.0,0.00041917,120]
[421691022,1778043072000,-209.72018003,0.00041917,120]
[421691023,1778043072000,-276.45904597,0.00041917,120]
[421691018,1778043072000,-500.0,0.00041917,120]
[421691019,1778043072000,-205.3441167,0.00041917,120]
[421691017,1778043072000,-500.0,0.00041917,120]
[421691014,1778043072000,-278.92086476,0.00041917,120]
[421691035,1778043072000,-488.00397762,0.0004199,60]
[421691028,1778043072000,-197.62764003,0.00041917,120]
[421691020,1778043072000,-610.70810586,0.00041917,120]
[421691026,1778043072000,-215.76520577,0.00041917,120]
[421691029,1778043072000,-1560.0,0.00041918,120]
[421691034,1778043072000,-481.75674179,0.0004197,3]
[421691031,1778043072000,-250.0,0.00041967,97]
[421691027,1778043072000,-628.3179824,0.00041917,120]
[421691032,1778043072000,-240.86,0.00041967,97]
[421691025,1778043072000,-500.0,0.00041917,120]
[421691024,1778043072000,-500.0,0.00041917,120]
[421691021,1778043072000,-532.46465239,0.00041917,120]
[421691033,1778043072000,-350.0,0.00041968,5]
[421691104,1778043073000,-3151.37753294,0.000424,7]
[421691103,1778043073000,-500.0,0.00042397,54]
[421691102,1778043073000,-401.0,0.00042397,2]
[421691108,1778043073000,-151.0,0.000424,120]
[421691106,1778043073000,-251648.20300333,0.000424,30]
[421691099,1778043073000,-10000.0,0.00042373,30]
[421691098,1778043073000,-5000.0,0.00042373,30]
[421691101,1778043073000,-500.0,0.00042387,97]
[421691100,1778043073000,-800.0,0.00042373,120]
[421691109,1778043073000,-151.0,0.000424,120]
[421691107,1778043073000,-200.0,0.000424,10]
[421691105,1778043073000,-580.39,0.000424,90]
[421691110,1778043073000,-1192.662884,0.000424,120]
[421691125,1778043073000,-665.610913,0.000424,7]
[421691113,1778043073000,-1192.662884,0.000424,120]
[421691115,1778043073000,-151.0,0.000424,120]
[421691114,1778043073000,-151.0,0.000424,120]
[421691116,1778043073000,-264.592177,0.000424,30]
[421691111,1778043073000,-1192.662884,0.000424,120]
[421691123,1778043073000,-800.440754,0.000424,120]
[421691117,1778043073000,-264.592177,0.000424,30]
[421691119,1778043073000,-264.592177,0.000424,30]
[421691118,1778043073000,-800.440754,0.000424,120]
[421691121,1778043073000,-264.592177,0.000424,30]
[421691122,1778043073000,-800.440754,0.000424,120]
[421691120,1778043073000,-800.440754,0.000424,120]
[421691093,1778043073000,-9518.8639383,0.00042345,2]
[421691112,1778043073000,-1192.662884,0.000424,120]
[421691094,1778043073000,-1142.1,0.00042347,120]
[421691067,1778043073000,-2000.0,0.0004221,120]
[421691091,1778043073000,-286.35631466,0.00042343,2]
[421691070,1778043073000,-2000.0,0.0004221,120]
[421691126,1778043073000,-665.610913,0.000424,7]
[421691069,1778043073000,-2000.0,0.0004221,120]
[421691066,1778043073000,-32122.41899674,0.000422,2]
[421691068,1778043073000,-2000.0,0.0004221,120]
[421691071,1778043073000,-2000.0,0.0004221,120]
[421691074,1778043073000,-156.48951136,0.00042231,120]
[421691072,1778043073000,-500.0,0.00042211,5]
[421691073,1778043073000,-22918.75312585,0.0004223,2]
[421691086,1778043073000,-150.0,0.00042326,120]
[421691076,1778043073000,-500.0,0.00042268,6]
[421691075,1778043073000,-1131.05,0.0004224,2]
[421691077,1778043073000,-150.0,0.00042278,120]
[421691095,1778043073000,-161.0,0.0004235,120]
[421691083,1778043073000,-350.0,0.00042316,4]
[421691080,1778043073000,-500.0,0.00042299,40]
[421691079,1778043073000,-500.0,0.00042294,14]
[421691084,1778043073000,-150.0,0.00042326,120]
[421691078,1778043073000,-150.0,0.00042278,120]
[421691082,1778043073000,-250.0,0.00042313,109]
[421691081,1778043073000,-189698.0,0.000423,60]
[421691088,1778043073000,-150.0,0.00042326,120]
[421691096,1778043073000,-5000.0,0.00042373,15]
[421691097,1778043073000,-10000.0,0.00042373,15]
[421691087,1778043073000,-150.0,0.00042326,120]
[421691090,1778043073000,-510.27,0.00042333,120]
[421691089,1778043073000,-299.20200052,0.00042326,120]
[421691092,1778043073000,-312.8277368,0.00042345,2]
[421691085,1778043073000,-150.0,0.00042326,120]
[421691127,1778043073000,-665.610913,0.000424,7]
[421691135,1778043073000,-1024.8,0.00042437,2]
[421691130,1778043073000,-273.57048514,0.00042402,2]
[421691163,1778043073000,-500.0,0.00042454,120]
[421691162,1778043073000,-500.0,0.00042454,120]
[421691174,1778043073000,-500.0,0.00042464,120]
[421691167,1778043073000,-350.0,0.00042457,7]
[421691166,1778043073000,-372.43341132,0.00042454,120]
[421691164,1778043073000,-500.0,0.00042454,120]
[421691165,1778043073000,-500.0,0.00042454,120]
[421691173,1778043073000,-500.0,0.00042464,120]
[421691169,1778043073000,-500.0,0.00042464,120]
[421691171,1778043073000,-500.0,0.00042464,120]
[421691170,1778043073000,-500.0,0.00042464,120]
[421691168,1778043073000,-259.20048071,0.00042464,120]
[421691175,1778043073000,-500.0,0.00042464,120]
[421691155,1778043073000,-802.0,0.00042454,60]
[421691186,1778043073000,-500.0,0.00042464,120]
[421691177,1778043073000,-500.0,0.00042464,120]
[421691187,1778043073000,-592.7767285,0.00042464,120]
[421691178,1778043073000,-500.0,0.00042464,120]
[421691179,1778043073000,-500.0,0.00042464,120]
[421691180,1778043073000,-500.0,0.00042464,120]
[421691181,1778043073000,-500.0,0.00042464,120]
[421691184,1778043073000,-500.0,0.00042464,120]
[421691183,1778043073000,-500.0,0.00042464,120]
[421691182,1778043073000,-500.0,0.00042464,120]
[421691185,1778043073000,-500.0,0.00042464,120]
[421691188,1778043073000,-500.0,0.00042465,120]
[421691132,1778043073000,-370.41,0.00042409,120]
[421691189,1778043073000,-500.0,0.00042465,120]
[421691176,1778043073000,-500.0,0.00042464,120]
[421691156,1778043073000,-802.0,0.00042454,60]
[421691172,1778043073000,-500.0,0.00042464,120]
[421691159,1778043073000,-500.0,0.00042454,120]
[421691154,1778043073000,-802.0,0.00042454,60]
[421691129,1778043073000,-151.0,0.000424,120]
[421691124,1778043073000,-13558.67649185,0.000424,70]
[421691131,1778043073000,-243.07,0.00042409,120]
[421691133,1778043073000,-407.0,0.0004242,2]
[421691134,1778043073000,-250.0,0.00042426,114]
[421691145,1778043073000,-802.0,0.00042454,60]
[421691140,1778043073000,-802.0,0.00042454,60]
[421691148,1778043073000,-802.0,0.00042454,60]
[421691141,1778043073000,-802.0,0.00042454,60]
[421691137,1778043073000,-328.64576114,0.00042452,120]
[421691136,1778043073000,-161.0,0.0004245,120]
[421691146,1778043073000,-802.0,0.00042454,60]
[421691138,1778043073000,-1079.0,0.00042454,60]
[421691128,1778043073000,-665.610913,0.000424,7]
[421691147,1778043073000,-802.0,0.00042454,60]
[421691142,1778043073000,-802.0,0.00042454,60]
[421691157,1778043073000,-392.0,0.00042454,60]
[421691161,1778043073000,-500.0,0.00042454,120]
[421691153,1778043073000,-802.0,0.00042454,60]
[421691152,1778043073000,-802.0,0.00042454,60]
[421691160,1778043073000,-500.0,0.00042454,120]
[421691158,1778043073000,-500.0,0.00042454,120]
[421691150,1778043073000,-802.0,0.00042454,60]
[421691149,1778043073000,-802.0,0.00042454,60]
[421691139,1778043073000,-1042.0,0.00042454,60]
[421691144,1778043073000,-802.0,0.00042454,60]
[421691143,1778043073000,-802.0,0.00042454,60]
[421691151,1778043073000,-802.0,0.00042454,60]
[421691238,1778043074000,-2042.51,0.00042465,120]
[421691231,1778043074000,-2042.51,0.00042465,120]
[421691228,1778043074000,-2042.51,0.00042465,120]
[421691220,1778043074000,-1861.65,0.00042465,120]
[421691240,1778043074000,-2042.51,0.00042465,120]
[421691225,1778043074000,-2042.51,0.00042465,120]
[421691229,1778043074000,-305.1814995,0.00042465,120]
[421691222,1778043074000,-500.0,0.00042465,120]
[421691223,1778043074000,-1861.65,0.00042465,120]
[421691227,1778043074000,-500.0,0.00042465,120]
[421691235,1778043074000,-1861.65,0.00042465,120]
[421691239,1778043074000,-1861.65,0.00042465,120]
[421691230,1778043074000,-1861.65,0.00042465,120]
[421691242,1778043074000,-1861.65,0.00042465,120]
[421691233,1778043074000,-1861.65,0.00042465,120]
[421691237,1778043074000,-1861.65,0.00042465,120]
[421691252,1778043074000,-1861.82017822,0.00042465,120]
[421691234,1778043074000,-2042.51,0.00042465,120]
[421691236,1778043074000,-2042.51,0.00042465,120]
[421691246,1778043074000,-1861.65,0.00042465,120]
[421691250,1778043074000,-1861.65,0.00042465,120]
[421691251,1778043074000,-2042.51,0.00042465,120]
[421691247,1778043074000,-2042.51,0.00042465,120]
[421691241,1778043074000,-316.45412614,0.00042465,120]
[421691248,1778043074000,-1861.65,0.00042465,120]
[421691249,1778043074000,-1861.65,0.00042465,120]
[421691224,1778043074000,-500.0,0.00042465,120]
[421691232,1778043074000,-533.31720985,0.00042465,120]
[421691226,1778043074000,-1861.65,0.00042465,120]
[421691192,1778043074000,-500.0,0.00042465,120]
[421691219,1778043074000,-2042.51,0.00042465,120]
[421691253,1778043074000,-2042.51,0.00042465,120]
[421691191,1778043074000,-332.05541535,0.00042465,120]
[421691190,1778043074000,-500.0,0.00042465,120]
[421691200,1778043074000,-500.0,0.00042465,120]
[421691197,1778043074000,-1861.65,0.00042465,120]
[421691194,1778043074000,-168.32272258,0.00042465,120]
[421691199,1778043074000,-1861.65,0.00042465,120]
[421691196,1778043074000,-500.0,0.00042465,120]
[421691193,1778043074000,-296.10451819,0.00042465,120]
[421691201,1778043074000,-1861.65,0.00042465,120]
[421691195,1778043074000,-500.0,0.00042465,120]
[421691203,1778043074000,-1861.65,0.00042465,120]
[421691213,1778043074000,-2042.51,0.00042465,120]
[421691221,1778043074000,-2042.51,0.00042465,120]
[421691202,1778043074000,-500.0,0.00042465,120]
[421691205,1778043074000,-500.0,0.00042465,120]
[421691204,1778043074000,-500.0,0.00042465,120]
[421691210,1778043074000,-1861.65,0.00042465,120]
[421691211,1778043074000,-2042.51,0.00042465,120]
[421691212,1778043074000,-1861.65,0.00042465,120]
[421691206,1778043074000,-500.0,0.00042465,120]
[421691209,1778043074000,-203.53765153,0.00042465,120]
[421691207,1778043074000,-2042.51,0.00042465,120]
[421691208,1778043074000,-209.57681152,0.00042465,120]
[421691215,1778043074000,-2042.51,0.00042465,120]
[421691216,1778043074000,-1861.65,0.00042465,120]
[421691218,1778043074000,-1861.65,0.00042465,120]
[421691217,1778043074000,-2042.51,0.00042465,120]
[421691214,1778043074000,-1861.65,0.00042465,120]
[421691243,1778043074000,-2042.51,0.00042465,120]
[421691198,1778043074000,-500.0,0.00042465,120]
[421691245,1778043074000,-2042.51,0.00042465,120]
[421691284,1778043074000,-547.91788544,0.00042465,120]
[421691289,1778043074000,-500.0,0.00042465,120]
[421691283,1778043074000,-500.0,0.00042465,120]
[421691281,1778043074000,-500.0,0.00042465,120]
[421691292,1778043074000,-500.0,0.00042465,120]
[421691302,1778043074000,-608.13379372,0.00042465,120]
[421691294,1778043074000,-500.0,0.00042465,120]
[421691296,1778043074000,-500.0,0.00042465,120]
[421691293,1778043074000,-500.0,0.00042465,120]
[421691300,1778043074000,-199.7696019,0.00042465,120]
[421691295,1778043074000,-371.70034689,0.00042465,120]
[421691299,1778043074000,-500.0,0.00042465,120]
[421691297,1778043074000,-154.48436396,0.00042465,120]
[421691290,1778043074000,-500.0,0.00042465,120]
[421691291,1778043074000,-215.24069481,0.00042465,120]
[421691301,1778043074000,-500.0,0.00042465,120]
[421691304,1778043074000,-169.63198966,0.00042465,7]
[421691314,1778043074000,-500.0,0.00042465,120]
[421691303,1778043074000,-274.91411606,0.00042465,120]
[421691309,1778043074000,-500.0,0.00042465,120]
[421691308,1778043074000,-500.0,0.00042465,120]
[421691306,1778043074000,-500.0,0.00042465,120]
[421691307,1778043074000,-500.0,0.00042465,120]
[421691312,1778043074000,-500.0,0.00042465,120]
[421691311,1778043074000,-500.0,0.00042465,120]
[421691310,1778043074000,-500.0,0.00042465,120]
[421691313,1778043074000,-500.0,0.00042465,120]
[421691244,1778043074000,-1861.65,0.00042465,120]
[421691298,1778043074000,-500.0,0.00042465,120]
[421691280,1778043074000,-500.0,0.00042465,120]
[421691305,1778043074000,-500.0,0.00042465,120]
[421691282,1778043074000,-500.0,0.00042465,120]
[421691285,1778043074000,-500.0,0.00042465,120]
[421691255,1778043074000,-2042.51,0.00042465,120]
[421691254,1778043074000,-2042.51,0.00042465,120]
[421691262,1778043074000,-500.0,0.00042465,120]
[421691263,1778043074000,-500.0,0.00042465,120]
[421691256,1778043074000,-2042.51,0.00042465,120]
[421691264,1778043074000,-261.90593041,0.00042465,120]
[421691257,1778043074000,-2042.51,0.00042465,120]
[421691259,1778043074000,-2042.68030461,0.00042465,120]
[421691260,1778043074000,-170.35280383,0.00042465,120]
[421691261,1778043074000,-157.21051205,0.00042465,120]
[421691265,1778043074000,-207.81902566,0.00042465,120]
[421691266,1778043074000,-194.11605646,0.00042465,120]
[421691267,1778043074000,-500.0,0.00042465,120]
[421691258,1778043074000,-218.63396636,0.00042465,120]
[421691270,1778043074000,-500.0,0.00042465,120]
[421691268,1778043074000,-500.0,0.00042465,120]
[421691279,1778043074000,-500.0,0.00042465,120]
[421691288,1778043074000,-500.0,0.00042465,120]
[421691277,1778043074000,-500.0,0.00042465,120]
[421691278,1778043074000,-500.0,0.00042465,120]
[421691275,1778043074000,-500.0,0.00042465,120]
[421691286,1778043074000,-500.0,0.00042465,120]
[421691274,1778043074000,-500.0,0.00042465,120]
[421691269,1778043074000,-500.0,0.00042465,120]
[421691276,1778043074000,-500.0,0.00042465,120]
[421691271,1778043074000,-500.0,0.00042465,120]
[421691272,1778043074000,-500.0,0.00042465,120]
[421691287,1778043074000,-500.0,0.00042465,120]
[421691273,1778043074000,-500.0,0.00042465,120]
[421691350,1778043075000,-8795.81,0.00042465,120]
[421691346,1778043075000,-157.87638221,0.00042465,120]
[421691345,1778043075000,-160.04640632,0.00042465,120]
[421691347,1778043075000,-229.54757575,0.00042465,120]
[421691341,1778043075000,-1157.26,0.00042465,120]
[421691351,1778043075000,-8795.81,0.00042465,120]
[421691343,1778043075000,-1157.26,0.00042465,120]
[421691344,1778043075000,-380.30899489,0.00042465,120]
[421691352,1778043075000,-8795.81,0.00042465,120]
[421691362,1778043075000,-8795.81,0.00042465,120]
[421691342,1778043075000,-1157.26,0.00042465,120]
[421691368,1778043075000,-8795.81,0.00042465,120]
[421691364,1778043075000,-8795.81,0.00042465,120]
[421691354,1778043075000,-8795.81,0.00042465,120]
[421691356,1778043075000,-8795.81,0.00042465,120]
[421691357,1778043075000,-500.0,0.00042465,120]
[421691366,1778043075000,-8795.81,0.00042465,120]
[421691369,1778043075000,-1202.39,0.00042465,120]
[421691373,1778043075000,-1202.39,0.00042465,120]
[421691374,1778043075000,-8795.81,0.00042465,120]
[421691363,1778043075000,-8795.81,0.00042465,120]
[421691349,1778043075000,-8795.81,0.00042465,120]
[421691358,1778043075000,-8795.81,0.00042465,120]
[421691375,1778043075000,-1202.39,0.00042465,120]
[421691348,1778043075000,-8795.81,0.00042465,120]
[421691322,1778043075000,-1157.26,0.00042465,120]
[421691333,1778043075000,-1157.26,0.00042465,120]
[421691359,1778043075000,-425.1450632,0.00042465,120]
[421691317,1778043075000,-500.0,0.00042465,120]
[421691315,1778043075000,-1157.26,0.00042465,120]
[421691316,1778043075000,-1157.26,0.00042465,120]
[421691319,1778043075000,-500.0,0.00042465,120]
[421691327,1778043075000,-1157.26,0.00042465,120]
[421691328,1778043075000,-500.0,0.00042465,120]
[421691329,1778043075000,-1157.26,0.00042465,120]
[421691320,1778043075000,-1157.26,0.00042465,120]
[421691318,1778043075000,-1157.26,0.00042465,120]
[421691321,1778043075000,-500.0,0.00042465,120]
[421691337,1778043075000,-1157.26,0.00042465,120]
[421691323,1778043075000,-500.0,0.00042465,120]
[421691326,1778043075000,-500.0,0.00042465,120]
[421691324,1778043075000,-500.0,0.00042465,120]
[421691331,1778043075000,-1157.26,0.00042465,120]
[421691338,1778043075000,-202.58056933,0.00042465,120]
[421691330,1778043075000,-500.0,0.00042465,120]
[421691332,1778043075000,-500.0,0.00042465,120]
[421691334,1778043075000,-205.73831304,0.00042465,120]
[421691336,1778043075000,-500.0,0.00042465,120]
[421691339,1778043075000,-1157.26,0.00042465,120]
[421691340,1778043075000,-1157.26,0.00042465,120]
[421691335,1778043075000,-1157.26,0.00042465,120]
[421691325,1778043075000,-1157.26,0.00042465,120]
[421691361,1778043075000,-8795.81,0.00042465,120]
[421691353,1778043075000,-500.0,0.00042465,120]
[421691365,1778043075000,-1202.39,0.00042465,120]
[421691399,1778043075000,-500.0,0.00042465,120]
[421691401,1778043075000,-500.0,0.00042465,120]
[421691402,1778043075000,-1202.55899964,0.00042465,120]
[421691403,1778043075000,-500.0,0.00042465,120]
[421691404,1778043075000,-500.0,0.00042465,120]
[421691400,1778043075000,-1202.39,0.00042465,120]
[421691410,1778043075000,-500.0,0.00042465,120]
[421691408,1778043075000,-166.66096138,0.00042465,120]
[421691409,1778043075000,-500.0,0.00042465,120]
[421691406,1778043075000,-500.0,0.00042465,120]
[421691407,1778043075000,-500.0,0.00042465,120]
[421691393,1778043075000,-1202.39,0.00042465,120]
[421691405,1778043075000,-500.0,0.00042465,120]
[421691413,1778043075000,-269.54836665,0.00042465,120]
[421691412,1778043075000,-500.0,0.00042465,120]
[421691422,1778043075000,-500.0,0.00042465,120]
[421691419,1778043075000,-500.0,0.00042465,120]
[421691416,1778043075000,-500.0,0.00042465,120]
[421691415,1778043075000,-500.0,0.00042465,120]
[421691414,1778043075000,-235.84128819,0.00042465,120]
[421691417,1778043075000,-500.0,0.00042465,120]
[421691418,1778043075000,-500.0,0.00042465,120]
[421691421,1778043075000,-500.0,0.00042465,120]
[421691371,1778043075000,-1202.39,0.00042465,120]
[421691411,1778043075000,-500.0,0.00042465,120]
[421691397,1778043075000,-1202.39,0.00042465,120]
[421691420,1778043075000,-500.0,0.00042465,120]
[421691391,1778043075000,-1202.39,0.00042465,120]
[421691395,1778043075000,-1202.39,0.00042465,120]
[421691372,1778043075000,-8795.81,0.00042465,120]
[421691355,1778043075000,-500.0,0.00042465,120]
[421691370,1778043075000,-8795.81,0.00042465,120]
[421691360,1778043075000,-8795.81,0.00042465,120]
[421691367,1778043075000,-1202.39,0.00042465,120]
[421691377,1778043075000,-1202.39,0.00042465,120]
[421691376,1778043075000,-8795.81,0.00042465,120]
[421691378,1778043075000,-8795.81,0.00042465,120]
[421691381,1778043075000,-1202.39,0.00042465,120]
[421691383,1778043075000,-8795.81,0.00042465,120]
[421691386,1778043075000,-8796.0313,0.00042465,120]
[421691385,1778043075000,-1202.39,0.00042465,120]
[421691384,1778043075000,-1202.39,0.00042465,120]
[421691379,1778043075000,-1202.39,0.00042465,120]
[421691382,1778043075000,-8795.81,0.00042465,120]
[421691388,1778043075000,-1202.39,0.00042465,120]
[421691398,1778043075000,-1202.39,0.00042465,120]
[421691387,1778043075000,-1202.39,0.00042465,120]
[421691390,1778043075000,-1202.39,0.00042465,120]
[421691392,1778043075000,-1202.39,0.00042465,120]
[421691394,1778043075000,-457.04624669,0.00042465,120]
[421691389,1778043075000,-1202.39,0.00042465,120]
[421691380,1778043075000,-8795.81,0.00042465,120]
[421691396,1778043075000,-1202.39,0.00042465,120]
[421691462,1778043076000,-500.0,0.00042465,120]
[421691461,1778043076000,-500.0,0.00042465,120]
[421691470,1778043076000,-362.44280552,0.00042465,120]
[421691460,1778043076000,-500.0,0.00042465,120]
[421691453,1778043076000,-500.0,0.00042465,120]
[421691456,1778043076000,-500.0,0.00042465,120]
[421691454,1778043076000,-500.0,0.00042465,120]
[421691451,1778043076000,-500.0,0.00042465,120]
[421691452,1778043076000,-500.0,0.00042465,120]
[421691459,1778043076000,-500.0,0.00042465,120]
[421691457,1778043076000,-500.0,0.00042465,120]
[421691463,1778043076000,-500.0,0.00042465,120]
[421691481,1778043076000,-500.0,0.00042465,120]
[421691467,1778043076000,-611.63979313,0.00042465,120]
[421691465,1778043076000,-500.0,0.00042465,120]
[421691466,1778043076000,-262.77236117,0.00042465,120]
[421691469,1778043076000,-500.0,0.00042465,120]
[421691468,1778043076000,-262.77236117,0.00042465,120]
[421691472,1778043076000,-500.0,0.00042465,120]
[421691478,1778043076000,-500.0,0.00042465,120]
[421691480,1778043076000,-500.0,0.00042465,120]
[421691479,1778043076000,-500.0,0.00042465,120]
[421691455,1778043076000,-500.0,0.00042465,120]
[421691471,1778043076000,-156.17564085,0.00042465,120]
[421691473,1778043076000,-500.0,0.00042465,120]
[421691464,1778043076000,-500.0,0.00042465,120]
[421691450,1778043076000,-1219.78584259,0.00042465,120]
[421691443,1778043076000,-1219.69,0.00042465,120]
[421691447,1778043076000,-500.0,0.00042465,120]
[421691474,1778043076000,-500.0,0.00042465,120]
[421691423,1778043076000,-511.20415442,0.00042465,120]
[421691427,1778043076000,-1219.69,0.00042465,120]
[421691424,1778043076000,-1219.69,0.00042465,120]
[421691425,1778043076000,-160.66738878,0.00042465,120]
[421691426,1778043076000,-1219.69,0.00042465,120]
[421691433,1778043076000,-1219.69,0.00042465,120]
[421691434,1778043076000,-1219.69,0.00042465,120]
[421691430,1778043076000,-1219.69,0.00042465,120]
[421691429,1778043076000,-1219.69,0.00042465,120]
[421691428,1778043076000,-1219.69,0.00042465,120]
[421691431,1778043076000,-1219.69,0.00042465,120]
[421691449,1778043076000,-500.0,0.00042465,120]
[421691432,1778043076000,-1219.69,0.00042465,120]
[421691441,1778043076000,-1219.69,0.00042465,120]
[421691442,1778043076000,-1219.69,0.00042465,120]
[421691444,1778043076000,-1219.69,0.00042465,120]
[421691440,1778043076000,-1219.69,0.00042465,120]
[421691435,1778043076000,-1219.69,0.00042465,120]
[421691445,1778043076000,-1219.69,0.00042465,120]
[421691439,1778043076000,-1219.69,0.00042465,120]
[421691446,1778043076000,-1219.69,0.00042465,120]
[421691437,1778043076000,-1219.69,0.00042465,120]
[421691438,1778043076000,-1219.69,0.00042465,120]
[421691448,1778043076000,-1219.69,0.00042465,120]
[421691458,1778043076000,-500.0,0.00042465,120]
[421691436,1778043076000,-1219.69,0.00042465,120]
[421691475,1778043076000,-500.0,0.00042465,120]
[421691533,1778043076000,-500.0,0.00042465,120]
[421691477,1778043076000,-500.0,0.00042465,120]
[421691513,1778043076000,-500.0,0.00042465,120]
[421691510,1778043076000,-500.0,0.00042465,120]
[421691514,1778043076000,-500.0,0.00042465,120]
[421691511,1778043076000,-184.5207263,0.00042465,120]
[421691519,1778043076000,-500.0,0.00042465,120]
[421691516,1778043076000,-500.0,0.00042465,120]